fUSD/lending_fUSD_20240614
["ID","MTS","AMOUNT","RATE_DAILY","PERIOD"]
[329430718,1718337052329,-500.0,0.00024383,2]
[329430719,1718337052340,-500.0,0.00024383,2]
[329430720,1718337052363,-685.54,0.00024383,2]
[329430721,1718337052381,-500.0,0.00024383,2]
[329430722,1718337052435,-500.0,0.00024383,2]
[329430723,1718337052469,-500.0,0.00024383,2]
[329430724,1718337052490,-194.215017,0.00024383,7]
[329430725,1718337052506,-721.91,0.00024383,2]
[329430726,1718337052517,-500.0,0.00024383,2]
[329430727,1718337052533,-500.0,0.00024383,2]
[329430728,1718337052544,-1651.12,0.00024383,2]
[329430729,1718337052560,-500.0,0.00024383,2]
[329430730,1718337052571,-572.5,0.00024383,2]
[329430731,1718337052582,-500.0,0.00024383,2]
[329430732,1718337052602,-1077.97,0.00024383,2]
[329430733,1718337052614,-154.3988,0.00024383,7]
[329430734,1718337052626,-2358.72,0.00024383,2]
[329430735,1718337052664,-500.0,0.00024383,2]
[329430736,1718337052675,-500.0,0.00024383,2]
[329430737,1718337052687,-685.79,0.00024383,2]
[329430738,1718337052714,-1388.1,0.00024383,2]
[329430739,1718337052743,-1197.16,0.00024383,2]
[329430740,1718337052762,-500.0,0.00024383,2]
[329430741,1718337052781,-710.98,0.00024383,2]
[329430742,1718337052795,-1569.15,0.00024383,2]
[329430743,1718337052828,-500.0,0.00024383,2]
[329430744,1718337052838,-501.07,0.00024383,2]
[329430745,1718337052849,-2622.52,0.00024383,2]
[329430746,1718337052863,-676.65,0.00024383,2]
[329430747,1718337052876,-500.0,0.00024383,2]
[329430748,1718337052886,-500.0,0.00024383,2]
[329430749,1718337052899,-507.06,0.00024383,2]
[329430750,1718337052920,-500.0,0.00024383,2]
[329430751,1718337052939,-500.0,0.00024383,2]
[329430752,1718337052950,-1335.87,0.00024383,2]
[329430753,1718337052975,-500.0,0.00024383,2]
[329430754,1718337052989,-677.02,0.00024383,2]
[329430755,1718337053002,-768.31,0.00024383,2]
[329430756,1718337053014,-3972.03,0.00024383,2]
[329430757,1718337053025,-674.33,0.00024383,2]
[329430758,1718337053037,-500.0,0.00024383,2]
[329430759,1718337053051,-151.0,0.00024383,7]
[329430760,1718337053063,-151.0,0.00024383,7]
[329430761,1718337053075,-3195.05,0.00024383,2]
[329430762,1718337053087,-500.0,0.00024383,2]
[329430763,1718337053098,-163.373985,0.00024383,7]
[329430764,1718337053113,-669.95,0.00024383,2]
[329430765,1718337053127,-151.0,0.00024383,7]
[329430766,1718337053137,-500.0,0.00024383,2]
[329430767,1718337053150,-500.0,0.00024383,2]
[329430768,1718337053177,-267.33,0.00024384,2]
[329430769,1718337053216,-216.0,0.0002444,2]
[329430770,1718337053237,-150.0,0.00024521,2]
[329430771,1718337053256,-549.0,0.00024647,2]
[329430772,1718337053270,-151.0,0.00024657,7]
[329430773,1718337053298,-500.0,0.00024657,2]
[329430774,1718337053317,-500.0,0.00024657,2]
[329430775,1718337053328,-228.53539786,0.00024657,2]
[329430776,1718337053353,-500.0,0.00024657,2]
[329430777,1718337053365,-500.0,0.00024657,2]
[329430778,1718337053376,-500.0,0.00024657,2]
[329430779,1718337053387,-500.0,0.00024657,2]
[329430780,1718337053407,-500.0,0.00024657,2]
[329430781,1718337053418,-500.0,0.00024657,2]
[329430782,1718337053441,-152.833514,0.00024657,7]
[329430783,1718337053454,-500.0,0.00024657,2]
[329430784,1718337053466,-462.68934325,0.00024657,2]
[329430785,1718337053477,-151.0,0.00024657,7]
[329430786,1718337053493,-500.0,0.00024657,2]
[329430787,1718337053509,-500.0,0.00024657,2]
[329430788,1718337053524,-500.0,0.00024657,2]
[329430789,1718337053536,-500.0,0.00024657,2]
[329430790,1718337053553,-500.0,0.00024657,2]
[329430791,1718337053579,-500.0,0.00024657,2]
[329430792,1718337053590,-500.0,0.00024657,2]
[329430793,1718337053621,-500.0,0.00024657,2]
[329430794,1718337053635,-150.0,0.00024657,2]
[329430795,1718337053654,-500.0,0.00024657,2]
[329430796,1718337053667,-614.68796199,0.00024657,2]
[329430797,1718337053679,-161.304236,0.00024657,7]
[329430798,1718337053692,-500.0,0.00024657,2]
[329430799,1718337053705,-500.0,0.00024657,2]
[329430800,1718337053729,-500.0,0.00024657,2]
[329430801,1718337053743,-154.521955,0.00024657,7]
[329430802,1718337053753,-500.0,0.00024657,2]
[329430803,1718337053774,-583.25,0.00024657,2]
[329430804,1718337053784,-500.0,0.00024657,2]
[329430805,1718337053800,-500.0,0.00024657,2]
[329430806,1718337053816,-500.0,0.00024657,2]
[329430807,1718337053831,-500.0,0.00024657,2]
[329430808,1718337053845,-630.7124365,0.00024657,2]
[329430809,1718337053861,-500.0,0.00024657,2]
[329430810,1718337053878,-500.0,0.00024657,2]
[329430811,1718337053892,-325.86358741,0.00024657,2]
[329430812,1718337053906,-500.0,0.00024657,2]
[329430813,1718337053921,-500.0,0.00024657,2]
[329430814,1718337053944,-500.0,0.00024657,2]
[329430815,1718337053955,-500.0,0.00024657,2]
[329430816,1718337053967,-500.0,0.00024657,2]
[329430817,1718337054008,-152.637682,0.00024657,7]
[329430818,1718337054022,-154.13478,0.00024657,7]
[329430819,1718337054034,-500.0,0.00024657,2]
[329430820,1718337054047,-500.0,0.00024657,2]
[329430821,1718337054066,-500.0,0.00024657,2]
[329430822,1718337054128,-500.0,0.00024657,2]
[329430823,1718337054139,-500.0,0.00024657,2]
[329430824,1718337054151,-152.441475,0.00024657,7]
[329430825,1718337054163,-500.0,0.00024657,2]
[329430826,1718337054253,-500.0,0.00024657,2]
[329430827,1718337054268,-500.0,0.00024657,2]
[329430828,1718337054288,-500.0,0.00024657,2]
[329430829,1718337054299,-154.864055,0.00024657,7]
[329430830,1718337054310,-500.0,0.00024657,2]
[329430831,1718337054327,-500.0,0.00024657,2]
[329430832,1718337054338,-500.0,0.00024657,2]
[329430833,1718337054352,-500.0,0.00024657,2]
[329430834,1718337054377,-500.0,0.00024657,2]
[329430835,1718337054390,-522.0,0.00024657,2]
[329430836,1718337054401,-549.7181552,0.00024657,2]
[329430837,1718337054421,-500.0,0.00024657,2]
[329430838,1718337054432,-500.0,0.00024657,2]
[329430839,1718337054445,-500.0,0.00024657,2]
[329430840,1718337054458,-500.0,0.00024657,2]
[329430841,1718337054470,-500.0,0.00024657,2]
[329430842,1718337054486,-500.0,0.00024657,2]
[329430843,1718337054499,-500.0,0.00024657,2]
[329430844,1718337054518,-1023.58,0.00024657,2]
[329430845,1718337054537,-7333.98,0.00024657,2]
[329430846,1718337054549,-500.0,0.00024657,2]
[329430847,1718337054566,-500.0,0.00024657,2]
[329430848,1718337054601,-167.997316,0.00024657,7]
[329430849,1718337054621,-500.0,0.00024657,2]
[329430850,1718337054638,-538.58,0.00024657,2]
[329430851,1718337054650,-524.5,0.00024657,2]
[329430852,1718337054670,-500.0,0.00024657,2]
[329430853,1718337054691,-500.0,0.00024657,2]
[329430854,1718337054703,-500.0,0.00024657,2]
[329430855,1718337054716,-2447.25,0.00024657,2]
[329430856,1718337054730,-555.0,0.00024657,2]
[329430857,1718337054743,-7426.24,0.00024657,2]
[329430858,1718337054755,-500.0,0.00024657,2]
[329430859,1718337054769,-171.472731,0.00024657,7]
[329430860,1718337054792,-500.0,0.00024657,2]
[329430861,1718337054803,-1542.57,0.00024657,2]
[329430862,1718337054814,-500.0,0.00024657,2]
[329430863,1718337054841,-500.0,0.00024657,2]
[329430864,1718337054856,-500.0,0.00024657,2]
[329430865,1718337054872,-607.89,0.00024657,2]
[329430866,1718337054892,-546.27,0.00024657,2]
[329430867,1718337054912,-802.21,0.00024657,2]
[329430868,1718337054924,-1452.78,0.00024657,2]
[329430869,1718337054935,-500.0,0.00024657,2]
[329430870,1718337054947,-1148.53,0.00024657,2]
[329430871,1718337054960,-3473.38,0.00024657,2]
[329430872,1718337054975,-500.0,0.00024657,2]
[329430873,1718337054986,-1141.78,0.00024657,2]
[329430874,1718337055012,-500.0,0.00024657,2]
[329430875,1718337055049,-500.0,0.00024657,2]
[329430876,1718337055060,-500.0,0.00024657,2]
[329430877,1718337055072,-1122.41,0.00024657,2]
[329430878,1718337055088,-500.0,0.00024657,2]
[329430879,1718337055104,-500.0,0.00024657,2]
[329430880,1718337055115,-500.0,0.00024657,2]
[329430881,1718337055127,-5649.01,0.00024657,2]
[329430882,1718337055150,-1035.78,0.00024657,2]
[329430883,1718337055192,-500.0,0.00024657,2]
[329430884,1718337055216,-1611.82,0.00024657,2]
[329430885,1718337055233,-500.0,0.00024657,2]
[329430886,1718337055252,-500.0,0.00024657,2]
[329430887,1718337055269,-615.3,0.00024657,2]
[329430888,1718337055283,-500.0,0.00024657,2]
[329430889,1718337055313,-500.0,0.00024657,2]
[329430890,1718337055323,-2079.62,0.00024657,2]
[329430891,1718337055343,-601.52,0.00024657,2]
[329430892,1718337055354,-527.1,0.00024657,2]
[329430893,1718337055365,-500.0,0.00024657,2]
[329430894,1718337055377,-695.4,0.00024657,2]
[329430895,1718337055396,-1225.83,0.00024657,2]
[329430896,1718337055411,-500.0,0.00024657,2]
[329430897,1718337055421,-500.0,0.00024657,2]
[329430898,1718337055437,-500.0,0.00024657,2]
[329430899,1718337055448,-919.2,0.00024657,2]
[329430900,1718337055461,-1571.51,0.00024657,2]
[329430901,1718337055473,-1067.19,0.00024657,2]
[329430902,1718337055490,-859.13,0.00024657,2]
[329430903,1718337055502,-151.0,0.00024657,7]
[329430904,1718337055513,-500.0,0.00024657,2]
[329430905,1718337055525,-3035.44,0.00024657,2]
[329430906,1718337055538,-1727.34,0.00024657,2]
[329430907,1718337055555,-705.3,0.00024657,2]
[329430909,1718337055572,-1038.86,0.00024657,2]
[329430913,1718337055616,-707.22,0.00024657,2]
[329430914,1718337055641,-500.0,0.00024657,2]
[329430915,1718337055652,-3405.75,0.00024657,2]
[329430916,1718337055671,-500.0,0.00024657,2]
[329430917,1718337055685,-634.66,0.00024657,2]
[329430918,1718337055710,-676.16,0.00024657,2]
[329430919,1718337055721,-1011.99,0.00024657,2]
[329430920,1718337055743,-1017.86,0.00024657,2]
[329430921,1718337055760,-1214.22,0.00024657,2]
[329430922,1718337055777,-1095.16,0.00024657,2]
[329430923,1718337055789,-629.5,0.00024657,2]
[329430924,1718337055805,-721.15,0.00024657,2]
[329430925,1718337055833,-500.0,0.00024657,2]
[329430926,1718337055863,-500.0,0.00024657,2]
[329430927,1718337055877,-500.0,0.00024657,2]
[329430928,1718337055891,-1426.01,0.00024657,2]
[329430929,1718337055905,-500.0,0.00024657,2]
[329430930,1718337055917,-640.58,0.00024657,2]
[329430931,1718337055930,-1273.07,0.00024657,2]
[329430932,1718337055948,-574.8,0.00024657,2]
[329430933,1718337055964,-500.0,0.00024657,2]
[329430934,1718337055977,-500.0,0.00024657,2]
[329430935,1718337055992,-500.0,0.00024657,2]
[329430936,1718337056003,-1476.32,0.00024657,2]
[329430937,1718337056013,-1196.59,0.00024657,2]
[329430938,1718337056025,-500.0,0.00024657,2]
[329430939,1718337056070,-663.18,0.00024657,2]
[329430940,1718337056085,-500.0,0.00024657,2]
[329430941,1718337056096,-535.17,0.00024657,2]
[329430942,1718337056107,-500.0,0.00024657,2]
[329430943,1718337056118,-500.0,0.00024657,2]
[329430944,1718337056144,-500.0,0.00024657,2]
[329430945,1718337056155,-685.54,0.00024657,2]
[329430946,1718337056167,-500.0,0.00024657,2]
[329430947,1718337056178,-500.0,0.00024657,2]
[329430948,1718337056203,-500.0,0.00024657,2]
[329430949,1718337056217,-721.91,0.00024657,2]
[329430950,1718337056242,-500.0,0.00024657,2]
[329430951,1718337056265,-500.0,0.00024657,2]
[329430952,1718337056307,-1651.12,0.00024657,2]
[329430953,1718337056320,-500.0,0.00024657,2]
[329430954,1718337056356,-572.5,0.00024657,2]
[329430955,1718337056389,-500.0,0.00024657,2]
[329430956,1718337056402,-1077.97,0.00024657,2]
[329430957,1718337056414,-2358.72,0.00024657,2]
[329430958,1718337056428,-500.0,0.00024657,2]
[329430959,1718337056440,-381.2710245,0.00024657,2]
[329430960,1718337056452,-685.79,0.00024657,2]
[329430961,1718337056464,-1388.1,0.00024657,2]
[329430962,1718337056477,-1197.16,0.00024657,2]
[329430963,1718337056500,-500.0,0.00024657,2]
[329430964,1718337056511,-710.98,0.00024657,2]
[329430965,1718337056522,-1569.15,0.00024657,2]
[329430966,1718337056544,-500.0,0.00024657,2]
[329430967,1718337056557,-501.07,0.00024657,2]
[329430968,1718337056567,-2622.52,0.00024657,2]
[329430969,1718337056578,-676.65,0.00024657,2]
[329430970,1718337056588,-500.0,0.00024657,2]
[329430971,1718337056601,-500.0,0.00024657,2]
[329430972,1718337056617,-507.06,0.00024657,2]
[329430973,1718337056628,-500.0,0.00024657,2]
[329430974,1718337056641,-500.0,0.00024657,2]
[329430975,1718337056652,-1335.87,0.00024657,2]
[329430976,1718337056662,-500.0,0.00024657,2]
[329430977,1718337056681,-677.02,0.00024657,2]
[329430978,1718337056692,-768.31,0.00024657,2]
[329430979,1718337056704,-3972.03,0.00024657,2]
[329430980,1718337056720,-674.33,0.00024657,2]
[329430981,1718337056736,-500.0,0.00024657,2]
[329430982,1718337056752,-3195.05,0.00024657,2]
[329430983,1718337056767,-500.0,0.00024657,2]
[329430984,1718337056798,-669.95,0.00024657,2]
[329430985,1718337056811,-151.0,0.00024657,7]
[329430986,1718337056837,-500.0,0.00024657,2]
[329430987,1718337056852,-500.0,0.00024657,2]
[329430988,1718337056868,-164.58465,0.00024681,7]
[329430989,1718337056881,-200.0,0.0002473,2]
[329430990,1718337056905,-500.0,0.0002473,2]
[329430991,1718337056917,-200.0,0.0002473,2]
[329430992,1718337056932,-200.0,0.00024731,2]
[329430993,1718337056946,-500.0,0.00024731,2]
[329430994,1718337056959,-500.0,0.00024731,2]
[329430995,1718337056971,-200.0,0.00024731,2]
[329430996,1718337056983,-2307.2223,0.0002478,2]
[329430997,1718337057004,-150.15937525,0.00024798,2]
[329430998,1718337057039,-150.15937525,0.00024798,2]
[329430999,1718337057053,-150.15937525,0.00024798,2]
[329431000,1718337057080,-183.70473489,0.0002483,2]
[329431001,1718337057095,-3171.61588092,0.0002485,2]
[329431002,1718337057107,-158.54779439,0.0002485,2]
[329431003,1718337057120,-549.0,0.000249,8]
[329431004,1718337057132,-305.0,0.000249,2]
[329431005,1718337057146,-150.0,0.000249,4]
[329431006,1718337057157,-151.0,0.00024913,3]
[329431007,1718337057168,-885.631,0.00024914,10]
[329431008,1718337057183,-682.88125423,0.00024929,2]
[329431009,1718337057204,-18557.95033281,0.0002493,2]
[329431010,1718337057420,-544.68072996,0.0002493,2]
[329431011,1718337057436,-295.12565298,0.0002493,2]
[329431012,1718337057455,-501.50580398,0.0002493,2]
[329431013,1718337058294,-878.07622238,0.000239,2]
[329431014,1718337058310,-88.92377762,0.00024757,2]
[329431015,1718337058330,-605.50432414,0.00024757,2]
[329431016,1718337058342,-183.64812056,0.00024757,2]
[329431017,1718337058353,-12829.05477697,0.0002493,2]
[329431018,1718337058396,-1900.443,0.0002493,2]
[329431019,1718337058415,-390.67842279,0.0002493,2]
[329431020,1718337058444,-558.14731722,0.0002493,2]
[329431021,1718337058480,-1118.01619956,0.0002493,2]
[329431022,1718337058511,-2251.75068781,0.0002493,2]
[329431023,1718337058548,-3223.51638071,0.0002493,2]
[329431024,1718337058566,-1144.6138646,0.0002493,2]
[329431025,1718337058579,-769.05650803,0.0002493,2]
[329431026,1718337058592,-417.50900005,0.0002493,2]
[329431027,1718337058611,-758.4128887,0.0002493,2]
[329431028,1718337058627,-6037.72443787,0.0002493,2]
[329431029,1718337058653,-13413.10303866,0.0002493,2]
[329431030,1718337058675,-644.05,0.0002493,2]
[329431031,1718337058697,-351.22370167,0.0002493,2]
[329431032,1718337384429,-1421.17327235,0.00011249,2]
[329431034,1718337603185,150.0,0.00011249,2]
[329431035,1718337603498,150.0,0.00011249,2]
[329431036,1718337603654,150.0,0.00011249,2]
[329431037,1718337603783,150.0,0.00011249,2]
[329431038,1718337603982,150.0,0.00011249,2]
[329431039,1718337604163,158.47468599,0.00011249,2]
[329431040,1718338033164,-156.14321544,0.000123,2]
[329431041,1718338045128,-20.52274938,0.000123,2]
[329431042,1718338045165,-2001.18032223,0.00012399,2]
[329431043,1718338045206,-6948.4815,0.000124,2]
[329431044,1718338045246,-162.17117468,0.00014048,2]
[329431045,1718338045282,-300.0,0.00014246,2]
[329431046,1718338045321,-150.0,0.00014247,2]
[329431047,1718338045374,-150.0,0.00014247,2]
[329431048,1718338045415,-24.00112279,0.00014248,2]
[329431049,1718338153097,1421.17327235,0.00010686,2]
[329431050,1718338202977,150.0,0.00010686,2]
[329431051,1718338203165,150.0,0.00010686,2]
[329431052,1718338203378,150.0,0.00010686,2]
[329431053,1718338203999,150.0,0.00010686,2]
[329431054,1718338204233,150.0,0.00010686,2]
[329431055,1718338204433,158.47468599,0.00010686,2]
[329431068,1718338233759,-934.27742191,0.00014248,2]
[329431069,1718338233776,-7110.15244799,0.00014998,2]
[329431070,1718338233800,-1258.74020752,0.00014998,2]
[329431071,1718338233832,-300.62315459,0.00014998,2]
[329431072,1718338233864,-176.36,0.00017844,2]
[329431073,1718338233882,-155.16104218,0.0001808,2]
[329431074,1718338233924,-537.8,0.00019654,2]
[329431075,1718338233936,-155.0,0.00021613,4]
[329431076,1718338233949,-250.0,0.00021614,2]
[329431077,1718338233967,-537.8,0.00021918,2]
[329431078,1718338233979,-158.51,0.00022002,2]
[329431079,1718338233995,-250.0,0.00022371,2]
[329431080,1718338234012,-161.28,0.00022424,2]
[329431081,1718338234029,-438.28,0.0002264,2]
[329431082,1718338234069,-625.47738869,0.00023143,2]
[329431083,1718338234091,-151.0,0.00023318,2]
[329431084,1718338234109,-166.17751077,0.0002333,2]
[329431085,1718338234164,-263.11248923,0.0002333,2]
[329431086,1718338234177,-497.8815,0.00024009,2]
[329431087,1718338234201,-333.51200006,0.00024009,2]
[329431088,1718338234648,-400.55119994,0.00024009,2]
[329431089,1718338234683,-1000.0,0.00024009,2]
[329431090,1718338234706,-2500.0,0.00024009,2]
[329431091,1718338234757,-1511.45854558,0.00024107,2]
[329431092,1718338234795,-296.76888305,0.00024108,2]
[329431093,1718338234809,-509.8800203,0.00024109,2]
[329431094,1718338234827,-509.82568898,0.00024109,2]
[329431095,1718338234869,-507.00250082,0.00024109,2]
[329431096,1718338234915,-508.8765616,0.00024109,2]
[329431097,1718338234951,-505.389661,0.00024109,2]
[329431098,1718338234976,-500.0,0.00024109,2]
[329431099,1718338235001,-506.41080779,0.00024109,2]
[329431100,1718338235019,-505.01450518,0.00024109,2]
[329431101,1718338235031,-497.56708133,0.00024109,2]
[329431102,1718338235045,-205.00894014,0.00024109,2]
[329431103,1718338235071,-498.76716081,0.00024109,2]
[329431104,1718338235085,-506.98484343,0.00024109,2]
[329431105,1718338235129,-605.98929425,0.00024109,2]
[329431106,1718338235152,-500.0,0.00024109,2]
[329431107,1718338235180,-500.0,0.00024109,2]
[329431108,1718338235207,-500.0,0.00024109,2]
[329431109,1718338235249,-528.69950602,0.00024109,2]
[329431110,1718338235262,-503.04938753,0.00024109,2]
[329431111,1718338235278,-515.551374,0.00024109,2]
[329431112,1718338235295,-517.08871174,0.00024109,2]
[329431113,1718338235329,-504.69820801,0.00024109,2]
[329431114,1718338235356,-500.0,0.00024109,2]
[329431115,1718338235367,-629.99166008,0.00024109,2]
[329431116,1718338235378,-519.42197602,0.00024109,2]
[329431117,1718338235397,-533.89669184,0.00024109,2]
[329431118,1718338235412,-500.0,0.00024109,2]
[329431119,1718338235425,-604.6354771,0.00024109,2]
[329431120,1718338235437,-500.0,0.00024109,2]
[329431121,1718338235452,-500.0,0.00024109,2]
[329431122,1718338235466,-512.51755813,0.00024109,2]
[329431123,1718338235509,-500.0,0.00024109,2]
[329431124,1718338235558,-500.0,0.00024109,2]
[329431125,1718338235601,-536.99403726,0.00024109,2]
[329431126,1718338235614,-503.80699869,0.00024109,2]
[329431127,1718338235629,-514.72318806,0.00024109,2]
[329431128,1718338235641,-503.09330386,0.00024109,2]
[329431129,1718338235660,-508.69314508,0.00024109,2]
[329431130,1718338235677,-500.0,0.00024109,2]
[329431131,1718338235692,-627.75054582,0.00024109,2]
[329431132,1718338235719,-262.0667226,0.00024109,2]
[329431133,1718338235760,-500.0,0.00024109,2]
[329431134,1718338235776,-500.0,0.00024109,2]
[329431135,1718338235807,-500.0,0.00024109,2]
[329431136,1718338235818,-500.0,0.00024109,2]
[329431137,1718338235830,-508.2235588,0.00024109,2]
[329431138,1718338235844,-587.08008924,0.00024109,2]
[329431139,1718338235866,-500.0,0.00024109,2]
[329431140,1718338235877,-500.0,0.00024109,2]
[329431141,1718338235887,-500.0,0.00024109,2]
[329431142,1718338235905,-500.0,0.00024109,2]
[329431143,1718338235917,-354.35855143,0.00024109,2]
[329431144,1718338235932,-500.0,0.00024109,2]
[329431145,1718338235961,-500.0,0.00024109,2]
[329431146,1718338235988,-500.0,0.00024109,2]
[329431147,1718338236003,-500.0,0.00024109,2]
[329431148,1718338236027,-500.0,0.00024109,2]
[329431149,1718338236041,-500.0,0.00024109,2]
[329431150,1718338236064,-163.08940654,0.00024109,2]
[329431151,1718338236074,-500.0,0.00024109,2]
[329431152,1718338236085,-500.0,0.00024109,2]
[329431153,1718338236097,-500.0,0.00024109,2]
[329431154,1718338236110,-184.92681816,0.00024109,2]
[329431155,1718338236141,-500.0,0.00024109,2]
[329431156,1718338236177,-505.15608582,0.00024109,2]
[329431157,1718338236216,-500.0,0.00024109,2]
[329431158,1718338236228,-500.0,0.00024109,2]
[329431159,1718338236239,-500.0,0.00024109,2]
[329431160,1718338236272,-506.82170545,0.00024109,2]
[329431161,1718338236286,-500.0,0.00024109,2]
[329431162,1718338236312,-500.0,0.00024109,2]
[329431163,1718338236324,-500.0,0.00024109,2]
[329431164,1718338236338,-500.0,0.00024109,2]
[329431165,1718338236350,-500.0,0.00024109,2]
[329431166,1718338236362,-500.0,0.00024109,2]
[329431167,1718338236375,-500.0,0.00024109,2]
[329431168,1718338236386,-500.0,0.00024109,2]
[329431169,1718338236398,-500.0,0.00024109,2]
[329431170,1718338236412,-500.0,0.00024109,2]
[329431171,1718338236423,-500.0,0.00024109,2]
[329431172,1718338236434,-500.0,0.00024109,2]
[329431173,1718338236445,-500.0,0.00024109,2]
[329431174,1718338236480,-500.0,0.00024109,2]
[329431175,1718338236490,-500.0,0.00024109,2]
[329431176,1718338236501,-500.0,0.00024109,2]
[329431177,1718338236512,-500.0,0.00024109,2]
[329431178,1718338236522,-500.0,0.00024109,2]
[329431179,1718338236533,-500.0,0.00024109,2]
[329431180,1718338236546,-500.0,0.00024109,2]
[329431181,1718338236557,-514.65749127,0.00024109,2]
[329431182,1718338236567,-500.0,0.00024109,2]
[329431183,1718338236578,-500.0,0.00024109,2]
[329431184,1718338236589,-500.0,0.00024109,2]
[329431185,1718338236615,-500.0,0.00024109,2]
[329431186,1718338236627,-500.0,0.00024109,2]
[329431187,1718338236671,-500.0,0.00024109,2]
[329431188,1718338236692,-550.01701862,0.00024109,2]
[329431189,1718338236711,-500.0,0.00024109,2]
[329431190,1718338236752,-500.0,0.00024109,2]
[329431191,1718338236786,-500.0,0.00024109,2]
[329431192,1718338236798,-500.0,0.00024109,2]
[329431193,1718338236810,-500.0,0.00024109,2]
[329431194,1718338236828,-500.0,0.00024109,2]
[329431195,1718338236864,-500.0,0.00024109,2]
[329431196,1718338236889,-500.0,0.00024109,2]
[329431197,1718338236901,-500.0,0.00024109,2]
[329431198,1718338236912,-500.0,0.00024109,2]
[329431199,1718338236946,-500.0,0.00024109,2]
[329431200,1718338236957,-500.0,0.00024109,2]
[329431201,1718338236968,-500.0,0.00024109,2]
[329431202,1718338236985,-375.25422571,0.00024109,2]
[329431203,1718338236996,-500.0,0.00024109,2]
[329431204,1718338237010,-500.0,0.00024109,2]
[329431205,1718338237029,-500.0,0.00024109,2]
[329431206,1718338237057,-500.0,0.00024109,2]
[329431207,1718338237072,-500.0,0.00024109,2]
[329431208,1718338237086,-500.0,0.00024109,2]
[329431209,1718338237105,-500.0,0.00024109,2]
[329431210,1718338237117,-500.0,0.00024109,2]
[329431211,1718338237128,-500.0,0.00024109,2]
[329431212,1718338237139,-500.0,0.00024109,2]
[329431213,1718338237155,-500.0,0.00024109,2]
[329431214,1718338237167,-500.0,0.00024109,2]
[329431215,1718338237179,-500.0,0.00024109,2]
[329431216,1718338237194,-500.0,0.00024109,2]
[329431217,1718338237211,-600.64409608,0.00024109,2]
[329431218,1718338237223,-500.0,0.00024109,2]
[329431219,1718338237237,-500.0,0.00024109,2]
[329431220,1718338237263,-500.0,0.00024109,2]
[329431221,1718338237279,-612.72872178,0.00024109,2]
[329431222,1718338237294,-500.0,0.00024109,2]
[329431223,1718338237315,-500.0,0.00024109,2]
[329431224,1718338237338,-500.0,0.00024109,2]
[329431225,1718338237352,-500.0,0.00024109,2]
[329431226,1718338237364,-500.0,0.00024109,2]
[329431227,1718338237378,-500.0,0.00024109,2]
[329431228,1718338237410,-500.0,0.00024109,2]
[329431229,1718338237428,-500.0,0.00024109,2]
[329431230,1718338237457,-500.0,0.00024109,2]
[329431231,1718338237473,-500.0,0.00024109,2]
[329431232,1718338237511,-500.0,0.00024109,2]
[329431233,1718338237524,-500.0,0.00024109,2]
[329431234,1718338237549,-500.0,0.00024109,2]